fUSD/lending_fUSD_20251120
["ID","MTS","AMOUNT","RATE_DAILY","PERIOD"]
[394479720,1763618169921,250.0,0.0004203,120]
[394479721,1763618170271,444.98,0.0004203,120]
[394479722,1763618170402,151.0,0.0004203,120]
[394479723,1763618170455,154.93471163,0.0004203,120]
[394479724,1763618170531,250.0,0.0004203,120]
[394479725,1763618170675,204.32871579,0.0004203,120]
[394479726,1763618171242,500.0,0.0004203,120]
[394479727,1763618171309,250.0,0.0004203,120]
[394479728,1763618171373,305.11364764,0.0004203,120]
[394479729,1763618171667,500.0,0.0004203,120]
[394479730,1763618171764,250.0,0.0004203,120]
[394479731,1763618171807,566.41143148,0.0004203,120]
[394479732,1763618171904,523.2,0.0004203,120]
[394479733,1763618172422,250.0,0.0004203,120]
[394479734,1763618173130,250.0,0.0004203,120]
[394479735,1763618173381,428.35223135,0.0004203,120]
[394479736,1763618173519,185.85539902,0.0004203,30]
[394479737,1763618173662,405.0385377,0.0004203,120]
[394479738,1763618173773,250.0,0.0004203,120]
[394479739,1763618173912,425.05778261,0.0004203,120]
[394479740,1763618174409,250.0,0.0004203,120]
[394479741,1763618175363,354.50780786,0.0004203,120]
[394479742,1763618175554,500.0,0.0004203,120]
[394479743,1763618175619,424.08881385,0.0004203,120]
[394479744,1763618175821,308.89743359,0.0004203,120]
[394479745,1763618176236,605.51184011,0.0004203,120]
[394479746,1763618176286,345.779166,0.0004203,120]
[394479747,1763618176329,174.12159417,0.0004203,120]
[394479748,1763618176545,484.0638315,0.0004203,120]
[394479749,1763618176791,153.36205195,0.0004203,30]
[394479750,1763618178312,327.54937956,0.0004203,120]
[394479751,1763618178954,221.16641586,0.0004203,120]
[394479752,1763618179255,400.0,0.0004203,120]
[394479753,1763618180831,500.0,0.0004203,120]
[394479754,1763618181093,392.4203487,0.0004203,120]
[394479755,1763618182734,409.24859379,0.0004203,120]
[394479756,1763618182978,452.91455964,0.0004203,120]
[394479757,1763618183338,592.08,0.00013699,2]
[394479758,1763618183494,361.43018573,0.0004203,120]
[394479759,1763618184095,402.27235706,0.0004203,120]
[394479760,1763618186255,500.0,0.0004203,120]
[394479761,1763618186367,500.0,0.0004203,120]
[394479762,1763618186634,395.84400573,0.0004203,120]
[394479763,1763618186684,286.13312667,0.0004203,120]
[394479764,1763618186759,328.06658456,0.0004203,120]
[394479765,1763618186854,484.90876624,0.0004203,120]
[394479766,1763618187066,500.0,0.0004203,120]
[394479767,1763618187121,552.56963279,0.0004203,120]
[394479768,1763618187189,360.45040619,0.0004203,120]
[394479769,1763618188561,500.0,0.0004203,120]
[394479770,1763618188607,275.98360613,0.0004203,120]
[394479771,1763618188832,195.00276355,0.0004203,120]
[394479772,1763618189095,400.0,0.0004203,120]
[394479773,1763618190575,187.01095908,0.0004203,120]
[394479774,1763618190976,316.29543922,0.0004203,120]
[394479775,1763618192146,328.77134252,0.0004203,120]
[394479776,1763618192398,629.2010152,0.0004203,120]
[394479777,1763618192607,237.6608922,0.0004203,120]
[394479778,1763618192890,186.77743586,0.0004203,120]
[394479780,1763618193337,171.25291851,0.0004203,120]
[394479782,1763618193783,269.25404024,0.0004203,120]
[394479783,1763618193839,262.73226016,0.0004203,120]
[394479784,1763618193890,430.50265798,0.0004203,120]
[394479786,1763618194137,336.33473535,0.0004203,120]
[394479794,1763618195794,413.24543586,0.0004203,120]
[394479797,1763618196299,364.97037724,0.0004203,120]
[394479803,1763618197546,400.0,0.0004203,120]
[394479805,1763618198105,238.39408917,0.0004203,120]
[394479806,1763618198443,237.50718716,0.0004203,120]
[394479807,1763618199472,297.62,0.0004203,120]
[394479808,1763618199952,500.0,0.0004203,120]
[394479809,1763618200212,166.82426685,0.0004203,120]
[394479810,1763618201270,274.68607372,0.0004203,120]
[394479811,1763618201316,599.93266199,0.0004203,30]
[394479812,1763618202084,382.14967474,0.0004203,120]
[394479813,1763618202410,405.63042091,0.0004203,120]
[394479814,1763618202557,322.95556633,0.0004203,120]
[394479815,1763618204240,427.78266404,0.0004203,120]
[394479816,1763618204448,255.25075604,0.0004203,120]
[394479817,1763618204497,250.18780994,0.0004203,120]
[394479818,1763618204879,635.46514844,0.0004203,120]
[394479819,1763618205380,367.03338706,0.0004203,120]
[394479821,1763618206125,216.10095998,0.0004203,120]
[394479822,1763618206237,237.27264178,0.0004203,120]
[394479823,1763618206849,293.87362352,0.0004203,120]
[394479824,1763618208160,518.86157138,0.0004203,120]
[394479825,1763618209329,208.31920864,0.0004203,120]
[394479826,1763618210264,273.67006438,0.0004203,120]
[394479827,1763618210317,382.32931827,0.0004203,120]
[394479828,1763618210525,310.94804914,0.0004203,120]
[394479829,1763618213722,212.40479605,0.0004203,120]
[394479830,1763618214615,542.62970054,0.0004203,120]
[394479831,1763618215766,442.10683092,0.0004203,120]
[394479832,1763618216134,244.34,0.0004203,120]
[394479833,1763618216183,168.41419942,0.0004203,120]
[394479834,1763618216444,500.0,0.0004203,120]
[394479835,1763618216552,412.23549532,0.0004203,120]
[394479836,1763618216680,339.8037974,0.0004203,120]
[394479837,1763618218516,223.41349479,0.0004203,120]
[394479838,1763618220744,249.97465817,0.0004203,120]
[394479839,1763618221651,186.12682362,0.0004203,120]
[394479840,1763618221895,431.93348479,0.0004203,120]
[394479841,1763618223619,401.08048482,0.0004203,120]
[394479842,1763618223842,500.0,0.0004203,120]
[394479843,1763618224074,337.81992745,0.0004203,120]
[394479844,1763618225195,427.42043126,0.0004203,120]
[394479845,1763618226164,400.0,0.0004203,120]
[394479846,1763618226259,500.0,0.0004203,120]
[394479847,1763618226868,300.79730427,0.0004203,120]
[394479848,1763618227095,161.062403,0.0004203,30]
[394479849,1763618227248,405.03261184,0.0004203,120]
[394479850,1763618227350,151.0,0.0004203,120]
[394479851,1763618227850,294.72018971,0.0004203,120]
[394479852,1763618227898,208.96763107,0.0004203,120]
[394479853,1763618228039,152.549005,0.0004203,120]
[394479854,1763618228089,151.0,0.0004203,120]
[394479855,1763618228347,188.91624129,0.0004203,120]
[394479856,1763618228419,151.0,0.0004203,120]
[394479857,1763618228719,151.0,0.0004203,120]
[394479858,1763618228855,602.67176671,0.0004203,120]
[394479859,1763618228997,151.0,0.0004203,120]
[394479860,1763618229041,151.0,0.0004203,120]
[394479861,1763618229315,151.0,0.0004203,120]
[394479862,1763618229358,151.0,0.0004203,120]
[394479863,1763618229622,151.0,0.0004203,120]
[394479864,1763618229902,151.0,0.0004203,120]
[394479865,1763618229993,151.83012,0.0004203,120]
[394479866,1763618230748,241.98505376,0.0004203,120]
[394479867,1763618231112,151.0,0.0004203,120]
[394479868,1763618231734,500.0,0.0004203,120]
[394479869,1763618231782,151.0,0.0004203,120]
[394479870,1763618232117,246.12260774,0.0004203,120]
[394479871,1763618232166,380.98,0.0004203,120]
[394479872,1763618232456,151.0,0.0004203,120]
[394479873,1763618233209,151.0,0.0004203,120]
[394479874,1763618233831,151.0,0.0004203,120]
[394479875,1763618234280,178.58293362,0.0004203,120]
[394479876,1763618234441,151.0,0.0004203,120]
[394479877,1763618234528,239.03873362,0.0004203,120]
[394479878,1763618234604,379.40680141,0.0004203,120]
[394479879,1763618234906,151.0,0.0004203,120]
[394479880,1763618235122,151.0,0.0004203,120]
[394479881,1763618235187,151.0,0.0004203,120]
[394479882,1763618235331,483.3789206,0.0004203,120]
[394479883,1763618235483,151.0,0.0004203,120]
[394479884,1763618235719,151.0,0.0004203,120]
[394479885,1763618235785,151.0,0.0004203,120]
[394479886,1763618236073,469.31032925,0.0004203,120]
[394479887,1763618236138,285.65209473,0.0004203,120]
[394479888,1763618236187,151.0,0.0004203,120]
[394479889,1763618236334,151.0,0.0004203,120]
[394479890,1763618236425,151.0,0.0004203,120]
[394479891,1763618236728,151.0,0.0004203,120]
[394479892,1763618236960,151.0,0.0004203,120]
[394479893,1763618237061,151.0,0.0004203,120]
[394479894,1763618237238,202.51266177,0.0004203,120]
[394479895,1763618237368,151.0,0.0004203,120]
[394479896,1763618237583,151.0,0.0004203,120]
[394479897,1763618237755,257.156136,0.0004203,120]
[394479898,1763618238085,411.73027728,0.0004203,120]
[394479899,1763618238202,151.0,0.0004203,120]
[394479900,1763618238476,500.0,0.0004203,120]
[394479901,1763618238738,331.88026774,0.0004203,120]
[394479902,1763618238821,151.0,0.0004203,120]
[394479903,1763618239919,151.0,0.0004203,120]
[394479904,1763618240564,151.0,0.0004203,120]
[394479905,1763618240835,220.67728008,0.0004203,120]
[394479906,1763618241212,151.0,0.0004203,120]
[394479907,1763618241833,151.0,0.0004203,120]
[394479908,1763618242489,151.0,0.0004203,120]
[394479909,1763618242604,380.01972603,0.0004203,120]
[394479910,1763618243109,151.0,0.0004203,120]
[394479911,1763618243276,358.47732052,0.0004203,120]
[394479912,1763618243635,237.7060001,0.0004203,120]
[394479913,1763618243761,151.0,0.0004203,120]
[394479914,1763618244080,320.34962504,0.0004203,120]
[394479915,1763618244796,331.14297439,0.0004203,120]
[394479916,1763618246501,227.89721671,0.0004203,120]
[394479919,1763618248307,151.0,0.0004203,120]
[394479921,1763618248605,151.0,0.0004203,120]
[394479923,1763618248917,151.0,0.0004203,120]
[394479925,1763618249018,432.75290557,0.0004203,120]
[394479927,1763618249305,151.0,0.0004203,120]
[394479928,1763618249469,647.50633504,0.0004203,120]
[394479930,1763618249607,151.0,0.0004203,120]
[394479932,1763618249894,151.0,0.0004203,120]
[394479933,1763618249937,151.0,0.0004203,120]
[394479935,1763618250193,151.0,0.0004203,120]
[394479937,1763618250282,151.0,0.0004203,120]
[394479939,1763618250506,151.0,0.0004203,120]
[394479940,1763618250673,151.0,0.0004203,120]
[394479942,1763618250794,151.0,0.0004203,120]
[394479944,1763618251084,151.0,0.0004203,120]
[394479945,1763618251145,151.0,0.0004203,120]
[394479947,1763618251276,500.0,0.0004203,120]
[394479948,1763618251360,151.0,0.0004203,120]
[394479949,1763618251498,151.0,0.0004203,60]
[394479950,1763618251545,266.51108588,0.0004203,120]
[394479951,1763618251589,164.773549,0.0004203,120]
[394479952,1763618251677,151.0,0.0004203,120]
[394479953,1763618251894,151.0,0.0004203,60]
[394479954,1763618251952,157.728061,0.0004203,120]
[394479955,1763618252001,151.0,0.0004203,120]
[394479956,1763618252236,151.0,0.0004203,60]
[394479957,1763618252286,151.0,0.0004203,120]
[394479958,1763618252555,155.661824,0.0004203,120]
[394479959,1763618252607,275.110495,0.0004203,60]
[394479960,1763618252655,151.0,0.0004203,120]
[394479961,1763618252854,155.661824,0.0004203,120]
[394479962,1763618252901,151.0,0.0004203,120]
[394479963,1763618252944,151.0,0.0004203,120]
[394479964,1763618253143,155.661824,0.0004203,120]
[394479965,1763618253188,413.4708983,0.0004203,120]
[394479966,1763618253237,151.0,0.0004203,60]
[394479967,1763618253290,151.0,0.0004203,120]
[394479968,1763618253335,300.627161,0.0004203,120]
[394479969,1763618253445,151.0,0.0004203,60]
[394479970,1763618253508,155.661824,0.0004203,120]
[394479971,1763618253566,396.91046515,0.0004203,120]
[394479972,1763618253627,151.0,0.0004203,120]
[394479973,1763618253729,151.0,0.0004203,60]
[394479974,1763618253820,155.661824,0.0004203,120]
[394479975,1763618253930,151.0,0.0004203,120]
[394479976,1763618254086,151.0,0.0004203,60]
[394479977,1763618254140,155.661824,0.0004203,120]
[394479978,1763618254228,209.28620947,0.0004203,120]
[394479979,1763618254286,151.0,0.0004203,120]
[394479980,1763618254365,151.0,0.0004203,60]
[394479981,1763618254531,151.0,0.0004203,120]
[394479982,1763618254592,155.661824,0.0004203,120]
[394479983,1763618254727,151.0,0.0004203,60]
[394479984,1763618254822,151.0,0.0004203,120]
[394479985,1763618254911,155.661824,0.0004203,120]
[394479986,1763618254993,242.873506,0.0004203,120]
[394479987,1763618255051,151.0,0.0004203,60]
[394479988,1763618255149,233.03398,0.0004203,120]
[394479989,1763618255211,155.661824,0.0004203,120]
[394479990,1763618255287,151.0,0.0004203,60]
[394479991,1763618255344,242.873506,0.0004203,120]
[394479992,1763618255493,155.661824,0.0004203,120]
[394479993,1763618255548,205.83998727,0.0004203,120]
[394479994,1763618255603,242.873506,0.0004203,120]
[394479995,1763618255677,189.086596,0.0004203,60]
[394479996,1763618255838,155.661824,0.0004203,120]
[394479997,1763618255899,439.44331087,0.0004203,120]
[394479998,1763618255964,242.873506,0.0004203,120]
[394479999,1763618256120,155.661824,0.0004203,120]
[394480000,1763618256358,242.873506,0.0004203,120]
[394480001,1763618256475,155.661824,0.0004203,120]
[394480002,1763618256875,274.97465902,0.0004203,120]
[394480003,1763618256931,242.873506,0.0004203,120]
[394480004,1763618256980,500.0,0.0004203,120]
[394480005,1763618257024,151.0,0.0004203,120]
[394480006,1763618257070,242.873506,0.0004203,120]
[394480007,1763618257116,332.88928795,0.0004203,120]
[394480008,1763618257158,151.0,0.0004203,120]
[394480009,1763618257260,155.661824,0.0004203,120]
[394480010,1763618257359,151.0,0.0004203,120]
[394480011,1763618257409,242.873506,0.0004203,120]
[394480012,1763618257547,155.661824,0.0004203,120]
[394480013,1763618257592,151.0,0.0004203,120]
[394480014,1763618257671,151.0,0.0004203,120]
[394480015,1763618257713,242.873506,0.0004203,120]
[394480016,1763618257829,155.661824,0.0004203,120]
[394480017,1763618257875,151.0,0.0004203,120]
[394480018,1763618257963,151.0,0.0004203,120]
[394480019,1763618258008,242.873506,0.0004203,120]
[394480020,1763618258150,323.97848365,0.0004203,120]
[394480021,1763618258195,154.139668,0.0004203,120]
[394480022,1763618258273,151.0,0.0004203,120]
[394480023,1763618258318,242.873506,0.0004203,120]
[394480024,1763618258362,155.661824,0.0004203,120]
[394480025,1763618258570,155.661824,0.0004203,120]
[394480026,1763618258615,242.873506,0.0004203,120]
[394480027,1763618258684,151.0,0.0004203,120]
[394480028,1763618258807,212.46411915,0.0004203,120]
[394480029,1763618258855,155.661824,0.0004203,120]
[394480030,1763618258904,242.873506,0.0004203,120]
[394480031,1763618258988,151.0,0.0004203,120]
[394480032,1763618259084,244.83542575,0.0004203,120]
[394480033,1763618259143,155.66182,0.0004203,120]
[394480034,1763618259191,242.873506,0.0004203,120]
[394480035,1763618259297,282.34529908,0.0004203,120]
[394480036,1763618259345,151.0,0.0004203,120]
[394480037,1763618259470,242.873506,0.0004203,120]
[394480038,1763618259644,151.0,0.0004203,120]
[394480039,1763618259763,242.873506,0.0004203,120]
[394480040,1763618260023,151.0,0.0004203,120]
[394480041,1763618260068,242.873506,0.0004203,120]
[394480042,1763618260153,216.166509,0.0004203,120]
[394480043,1763618260338,249.183127,0.0004203,120]
[394480044,1763618260382,242.873506,0.0004203,120]
[394480045,1763618260436,216.166509,0.0004203,120]
[394480046,1763618260670,242.873506,0.0004203,120]
[394480047,1763618260777,216.166509,0.0004203,120]
[394480048,1763618260823,196.72159094,0.0004203,120]
[394480049,1763618261024,242.873509,0.0004203,120]
[394480050,1763618261068,216.166509,0.0004203,120]
[394480051,1763618261207,151.0,0.0004203,120]
[394480052,1763618261249,374.45783556,0.0004203,120]
[394480053,1763618261370,216.166509,0.0004203,120]
[394480054,1763618261503,151.0,0.0004203,120]
[394480055,1763618261680,216.166509,0.0004203,120]
[394480056,1763618261803,151.0,0.0004203,120]
[394480057,1763618262006,216.166509,0.0004203,120]
[394480058,1763618262118,151.0,0.0004203,120]
[394480059,1763618262408,151.0,0.0004203,120]
[394480060,1763618262611,216.166509,0.0004203,120]
[394480061,1763618262698,151.0,0.0004203,120]
[394480062,1763618262916,216.166509,0.0004203,120]
[394480063,1763618263030,151.0,0.0004203,120]
[394480064,1763618263087,210.95466768,0.0004203,120]
[394480065,1763618263234,216.166509,0.0004203,120]
[394480066,1763618263342,151.0,0.0004203,120]
[394480067,1763618263535,216.166509,0.0004203,120]
[394480068,1763618263685,151.0,0.0004203,120]
[394480069,1763618264000,248.441564,0.0004203,120]
[394480070,1763618264046,216.166509,0.0004203,120]
[394480071,1763618264341,216.166509,0.0004203,120]
[394480072,1763618264471,265.56,0.0004203,120]
[394480073,1763618264604,356.58062367,0.0004203,120]
[394480074,1763618264806,216.166509,0.0004203,120]
[394480075,1763618264936,359.49257816,0.0004203,120]
[394480076,1763618264988,216.166509,0.0004203,120]
[394480077,1763618265035,151.0,0.0004203,90]
[394480078,1763618265282,216.166509,0.0004203,120]
[394480079,1763618265359,151.0,0.0004203,90]
[394480080,1763618265615,216.166509,0.0004203,120]
[394480081,1763618265749,151.0,0.0004203,90]
[394480082,1763618265880,342.93725956,0.0004203,120]
[394480083,1763618265927,216.166509,0.0004203,120]
[394480084,1763618266142,160.325866,0.0004203,90]
[394480085,1763618266200,216.166509,0.0004203,120]
[394480086,1763618266410,437.61082258,0.0004203,120]
[394480087,1763618266504,216.166506,0.0004203,120]
[394480088,1763618267039,557.78890897,0.0004203,120]
[394480089,1763618267955,151.0,0.0004203,120]
[394480090,1763618268250,159.876194,0.0004203,120]
[394480092,1763618268315,480.07013324,0.0004203,120]
[394480093,1763618268670,199.69750835,0.0004203,120]
[394480103,1763618271419,281.60756894,0.0004203,120]
[394480108,1763618272519,469.27787856,0.0004203,120]
[394480112,1763618273987,367.18552831,0.0004203,120]
[394480113,1763618274853,422.88724525,0.0004203,120]
[394480114,1763618275966,500.0,0.0004203,120]
[394480115,1763618276219,241.12899724,0.0004203,120]
[394480116,1763618276564,500.0,0.0004203,120]
[394480117,1763618276807,230.4433819,0.0004203,120]
[394480120,1763618279128,255.40114346,0.0004203,120]
[394480121,1763618281290,400.0,0.0004203,120]
[394480122,1763618282251,268.38426973,0.0004203,120]
[394480123,1763618283205,401.15923318,0.0004203,120]
[394480124,1763618283257,415.59430878,0.0004203,120]
[394480125,1763618283357,442.48328582,0.0004203,120]
[394480126,1763618284197,240.65967207,0.0004203,120]
[394480127,1763618285094,151.0,0.0004203,120]
[394480128,1763618285829,151.0,0.0004203,120]
[394480129,1763618286064,500.0,0.0004203,120]
[394480130,1763618286297,174.6169424,0.0004203,120]
[394480134,1763618287657,295.86468405,0.0004203,120]
[394480136,1763618288080,336.33130179,0.0004203,120]
[394480138,1763618288129,194.584771,0.0004203,120]
[394480140,1763618288454,194.584771,0.0004203,120]
[394480141,1763618288610,500.0,0.0004203,120]
[394480143,1763618288777,194.584771,0.0004203,120]
[394480144,1763618288850,219.14026255,0.0004203,120]
[394480146,1763618289096,194.584771,0.0004203,120]
[394480148,1763618289395,194.584771,0.0004203,120]
[394480149,1763618289694,194.584771,0.0004203,120]
[394480151,1763618289975,194.584771,0.0004203,120]
[394480153,1763618290194,412.74138138,0.0004203,120]
[394480154,1763618290271,194.584771,0.0004203,120]
[394480157,1763618290691,157.384926,0.0004203,120]
[394480159,1763618291206,194.584771,0.0004203,120]
[394480164,1763618291672,194.584771,0.0004203,120]
[394480166,1763618292041,194.584771,0.0004203,120]
[394480168,1763618292236,328.22626712,0.0004203,120]
[394480169,1763618292347,194.584771,0.0004203,120]
[394480170,1763618292527,183.98688728,0.0004203,120]
[394480172,1763618292701,194.584771,0.0004203,120]
[394480174,1763618292994,194.584771,0.0004203,120]
[394480175,1763618293303,194.584771,0.0004203,120]
[394480176,1763618293460,186.32465235,0.0004203,120]
[394480177,1763618293623,194.584771,0.0004203,120]
[394480178,1763618293899,194.584771,0.0004203,120]
[394480179,1763618294211,194.584771,0.0004203,120]
[394480180,1763618294683,194.584771,0.0004203,120]
[394480181,1763618294980,194.584766,0.0004203,120]
[394480182,1763618295074,409.12906769,0.0004203,120]
[394480183,1763618295983,403.98191622,0.0004203,120]
[394480188,1763618297047,416.22197831,0.0004203,120]
[394480189,1763618297544,2028.44,0.0004203,120]
[394480195,1763618299001,279.52631439,0.0004203,120]
[394480197,1763618299049,151.0,0.0004203,120]
[394480200,1763618299331,151.0,0.0004203,120]
[394480204,1763618299639,151.0,0.0004203,120]
[394480205,1763618299719,151.0,0.0004203,120]
[394480208,1763618299939,151.0,0.0004203,120]
[394480211,1763618300222,151.0,0.0004203,120]
[394480214,1763618300476,449.86779971,0.0004203,120]
[394480215,1763618300527,151.0,0.0004203,120]
[394480218,1763618300899,151.0,0.0004203,120]
[394480220,1763618301180,151.0,0.0004203,120]
[394480222,1763618301418,151.000004,0.0004203,120]
[394480223,1763618301481,151.0,0.0004203,120]
[394480224,1763618301766,151.0,0.0004203,120]
[394480225,1763618302138,151.0,0.0004203,120]
[394480226,1763618302457,151.0,0.0004203,120]
[394480227,1763618302541,224.47208768,0.0004203,120]
[394480228,1763618303024,242.598723,0.0004203,120]
[394480229,1763618304161,151.0,0.0004203,120]
[394480230,1763618304459,229.57094953,0.0004203,120]
[394480231,1763618304511,403.263391,0.0004203,120]
[394480232,1763618304566,151.0,0.0004203,120]
[394480233,1763618304767,403.263391,0.0004203,120]
[394480234,1763618304896,151.0,0.0004203,120]
[394480235,1763618305097,403.263391,0.0004203,120]
[394480236,1763618305241,151.0,0.0004203,120]
[394480237,1763618305402,403.263391,0.0004203,120]
[394480238,1763618305543,151.0,0.0004203,120]
[394480239,1763618305592,464.344107,0.0004203,120]
[394480240,1763618305701,403.263391,0.0004203,120]
[394480241,1763618305845,151.0,0.0004203,120]
[394480242,1763618305995,403.263391,0.0004203,120]
[394480243,1763618306048,464.344107,0.0004203,120]
[394480244,1763618306161,151.0,0.0004203,120]
[394480245,1763618306312,403.263391,0.0004203,120]
[394480246,1763618306423,464.344107,0.0004203,120]
[394480247,1763618306479,151.0,0.0004203,120]
[394480248,1763618306621,403.263391,0.0004203,120]
[394480249,1763618306795,464.344107,0.0004203,120]
[394480250,1763618306844,151.0,0.0004203,120]
[394480251,1763618306925,403.263391,0.0004203,120]
[394480252,1763618307104,464.344107,0.0004203,120]
[394480253,1763618307157,151.0,0.0004203,120]
[394480254,1763618307278,403.263391,0.0004203,120]
[394480255,1763618307443,151.0,0.0004203,120]
[394480256,1763618307582,403.263391,0.0004203,120]
[394480257,1763618307632,464.344107,0.0004203,120]
[394480258,1763618307789,151.0,0.0004203,120]
[394480259,1763618308061,403.263391,0.0004203,120]
[394480260,1763618308190,464.344107,0.0004203,120]
[394480261,1763618308239,151.0,0.0004203,120]
[394480262,1763618308294,403.263391,0.0004203,120]
[394480263,1763618308364,464.344107,0.0004203,120]
[394480264,1763618308458,151.0,0.0004203,120]
[394480265,1763618308518,403.263391,0.0004203,120]
[394480266,1763618308675,464.344107,0.0004203,120]
[394480267,1763618308763,151.0,0.0004203,120]
[394480268,1763618308852,403.263391,0.0004203,120]
[394480269,1763618308980,464.344107,0.0004203,120]
[394480270,1763618309076,151.0,0.0004203,120]
[394480271,1763618309165,403.263391,0.0004203,120]
[394480272,1763618309274,464.344107,0.0004203,120]
[394480273,1763618309384,151.0,0.0004203,120]
[394480274,1763618309432,180.824232,0.0004203,120]
[394480275,1763618309478,403.263391,0.0004203,120]
[394480276,1763618309592,464.344107,0.0004203,120]
[394480277,1763618309641,247.10216658,0.0004203,120]
[394480278,1763618309724,180.619248,0.0004203,120]
[394480279,1763618309779,403.263391,0.0004203,120]
[394480280,1763618309977,464.344107,0.0004203,120]
[394480281,1763618310077,403.263391,0.0004203,120]
[394480282,1763618310127,180.824232,0.0004203,120]
[394480283,1763618310376,180.824232,0.0004203,120]
[394480284,1763618310426,403.263393,0.0004203,120]
[394480285,1763618310628,464.344107,0.0004203,120]
[394480287,1763618310678,180.824232,0.0004203,120]
[394480288,1763618310726,464.344107,0.0004203,120]
[394480290,1763618310918,151.0,0.0004203,120]
[394480291,1763618311049,180.824232,0.0004203,120]
[394480292,1763618311162,464.344107,0.0004203,120]
[394480293,1763618311231,151.0,0.0004203,120]
[394480295,1763618311277,151.0,0.0004203,120]
[394480296,1763618311345,453.28962927,0.0004203,120]
[394480297,1763618311388,180.824232,0.0004203,120]
[394480298,1763618311468,464.344107,0.0004203,120]
[394480300,1763618311529,151.0,0.0004203,120]
[394480301,1763618311575,151.0,0.0004203,120]
[394480303,1763618311733,180.824232,0.0004203,120]
[394480304,1763618311792,464.344107,0.0004203,120]
[394480305,1763618311838,151.0,0.0004203,120]
[394480306,1763618311900,151.0,0.0004203,120]
[394480308,1763618312095,180.824232,0.0004203,120]
[394480309,1763618312149,151.0,0.0004203,120]
[394480310,1763618312198,464.344107,0.0004203,120]
[394480312,1763618312245,151.0,0.0004203,120]
[394480313,1763618312386,180.824232,0.0004203,120]
[394480314,1763618312440,151.0,0.0004203,120]
[394480316,1763618312485,151.0,0.0004203,120]
[394480317,1763618312568,464.344106,0.0004203,120]
[394480318,1763618312619,254.946458,0.0004203,30]
[394480319,1763618312675,180.824232,0.0004203,120]
[394480321,1763618312780,151.0,0.0004203,120]
[394480322,1763618312826,151.0,0.0004203,120]
[394480323,1763618312897,254.946458,0.0004203,30]
[394480325,1763618312969,180.824232,0.0004203,120]
[394480326,1763618313088,151.0,0.0004203,120]
[394480327,1763618313133,151.0,0.0004203,120]
[394480329,1763618313219,254.946458,0.0004203,30]